fUST/lending_fUST_20250802
["ID","MTS","AMOUNT","RATE_DAILY","PERIOD"]
[376644900,1754069456807,-460.0,0.00022912,2]
[376644901,1754069456816,-460.0,0.00022912,2]
[376644903,1754069456826,-1083.92,0.00022912,2]
[376644905,1754069456835,-460.0,0.00022912,2]
[376644907,1754069456844,-460.0,0.00022912,2]
[376644909,1754069456854,-460.0,0.00022912,2]
[376644910,1754069456863,-1187.48,0.00022912,2]
[376644912,1754069456872,-460.0,0.00022912,2]
[376644914,1754069456882,-553.09029765,0.00022912,2]
[376644916,1754069456891,-528.38,0.00022912,2]
[376644918,1754069456899,-923.87,0.00022912,2]
[376644920,1754069456908,-1074.14,0.00022912,2]
[376644922,1754069456918,-460.0,0.00022912,2]
[376644924,1754069456927,-984.64,0.00022912,2]
[376644926,1754069456936,-460.0,0.00022912,2]
[376644928,1754069456946,-305.10559489,0.00022934,8]
[376644930,1754069456955,-841.53699354,0.00023,3]
[376644932,1754069456964,-231.52694941,0.00023,3]
[376644934,1754069456976,-160.0,0.00023,2]
[376644936,1754069456985,-883.33,0.00023008,2]
[376644938,1754069456995,-460.0,0.00023008,2]
[376644940,1754069457006,-460.0,0.00023008,2]
[376644942,1754069457015,-516.91360445,0.00023008,2]
[376644944,1754069457025,-343.29,0.00023008,2]
[376644946,1754069457034,-460.0,0.00023008,2]
[376644948,1754069457043,-1123.48,0.00023008,2]
[376644950,1754069457052,-460.0,0.00023008,2]
[376644952,1754069457061,-689.92,0.00023008,2]
[376644953,1754069457070,-508.57314319,0.00023008,2]
[376644955,1754069457079,-460.0,0.00023008,2]
[376644957,1754069457089,-576.55,0.00023008,2]
[376644959,1754069457099,-460.0,0.00023008,2]
[376644961,1754069457108,-460.0,0.00023008,2]
[376644963,1754069457117,-1696.22,0.00023008,2]
[376644965,1754069457126,-1250.77,0.00023008,2]
[376644967,1754069457135,-1005.51,0.00023008,2]
[376644969,1754069457144,-460.0,0.00023008,2]
[376644971,1754069457153,-500.0,0.00023008,2]
[376644973,1754069457162,-460.0,0.00023008,2]
[376644975,1754069457171,-590.71,0.00023008,2]
[376644977,1754069457181,-1647.05,0.00023008,2]
[376644979,1754069457190,-794.83,0.00023008,2]
[376644981,1754069457200,-460.0,0.00023008,2]
[376644983,1754069457209,-851.59,0.00023008,2]
[376644985,1754069457218,-460.0,0.00023008,2]
[376644987,1754069457229,-460.0,0.00023008,2]
[376644989,1754069457238,-848.84,0.0002301,2]
[376644991,1754069457248,-460.0,0.0002301,2]
[376644993,1754069457257,-2449.66,0.0002301,2]
[376644994,1754069457267,-480.66,0.0002301,2]
[376644996,1754069457276,-1857.88,0.0002301,2]
[376644998,1754069457286,-460.0,0.0002301,2]
[376645000,1754069457295,-460.0,0.00023011,2]
[376645002,1754069457305,-460.0,0.00023011,2]
[376645004,1754069457314,-460.0,0.00023011,2]
[376645006,1754069457323,-899.72,0.00023011,2]
[376645008,1754069457332,-460.0,0.00023011,2]
[376645010,1754069457341,-460.0,0.00023011,2]
[376645012,1754069457350,-824.68,0.00023011,2]
[376645014,1754069457360,-576.62,0.00023011,2]
[376645016,1754069457369,-460.0,0.00023011,2]
[376645018,1754069457378,-584.83,0.00023011,2]
[376645020,1754069457387,-2037.08,0.00023011,2]
[376645022,1754069457397,-623.77,0.00023011,2]
[376645024,1754069457406,-499.33435445,0.00023011,2]
[376645026,1754069457415,-460.0,0.00023012,2]
[376645028,1754069457424,-423.30881644,0.00023012,2]
[376645030,1754069457433,-460.0,0.00023012,2]
[376645032,1754069457443,-460.0,0.00023012,2]
[376645034,1754069457452,-460.0,0.00023012,2]
[376645036,1754069457461,-460.0,0.00023012,2]
[376645038,1754069457472,-460.0,0.00023012,2]
[376645040,1754069457483,-572.15,0.00023012,2]
[376645042,1754069457492,-558.46,0.00023012,2]
[376645044,1754069457501,-470.41,0.00023012,2]
[376645046,1754069457510,-460.0,0.00023012,2]
[376645048,1754069457519,-522.15,0.00023012,2]
[376645050,1754069457529,-3584.18,0.00023012,2]
[376645052,1754069457538,-460.0,0.00023012,2]
[376645054,1754069457546,-460.0,0.00023012,2]
[376645056,1754069457555,-460.0,0.00023012,2]
[376645058,1754069457564,-3955.69,0.00023012,2]
[376645060,1754069457574,-406.38747922,0.00023012,2]
[376645062,1754069457583,-554.16,0.00023012,2]
[376645064,1754069457592,-460.0,0.00023012,2]
[376645066,1754069457602,-460.0,0.00023012,2]
[376645068,1754069457611,-460.0,0.00023012,2]
[376645070,1754069457620,-747.38,0.00023012,2]
[376645072,1754069457629,-1190.84,0.00023012,2]
[376645074,1754069457642,-1234.91,0.00023012,2]
[376645076,1754069457651,-574.19,0.00023012,2]
[376645078,1754069457660,-2698.82,0.00023012,2]
[376645080,1754069457669,-540.54786066,0.00023012,2]
[376645082,1754069457679,-8054.32,0.00023012,2]
[376645084,1754069457688,-529.07,0.00023012,2]
[376645085,1754069457697,-460.0,0.00023012,2]
[376645087,1754069457706,-1354.33,0.00023012,2]
[376645089,1754069457716,-4626.0,0.00023012,2]
[376645091,1754069457728,-460.0,0.00023012,2]
[376645093,1754069457737,-151.0,0.00023013,10]
[376645095,1754069457746,-200.24349931,0.00023013,10]
[376645097,1754069457755,-610.0,0.00023013,10]
[376645098,1754069457764,-243.9185205,0.00023013,2]
[376645099,1754069457772,-162.74710036,0.00023013,2]
[376645100,1754069457781,-152.48060661,0.00023013,2]
[376645101,1754069457791,-2097.27,0.00023013,10]
[376645102,1754069457800,-460.0,0.00023013,10]
[376645103,1754069457809,-460.0,0.00023013,10]
[376645104,1754069457819,-740.85,0.00023013,10]
[376645105,1754069457828,-460.0,0.00023013,10]
[376645107,1754069457838,-460.0,0.00023013,10]
[376645109,1754069457848,-460.0,0.00023013,10]
[376645111,1754069457857,-460.0,0.00023013,10]
[376645113,1754069457866,-460.0,0.00023013,10]
[376645115,1754069457875,-1000.0,0.00023021,2]
[376645117,1754069457885,-1000.0,0.00023021,2]
[376645119,1754069457894,-5050.75262965,0.0002305,2]
[376645121,1754069457904,-151.36218901,0.00023067,4]
[376645123,1754069457913,-1000.0,0.00023068,2]
[376645125,1754069457922,-446.43829862,0.00023068,2]
[376645127,1754069457931,-298.46098097,0.00023068,2]
[376645129,1754069457940,-1239.71056624,0.00023068,2]
[376645131,1754069457950,-305.10559489,0.00023141,8]
[376645145,1754069457959,-3790.94,0.00023177,3]
[376645148,1754069458092,-1895.46,0.00023177,3]
[376645150,1754069458101,-947.74,0.00023177,3]
[376645152,1754069458111,-473.86,0.00023177,3]
[376645154,1754069458120,-561.33,0.00023184,2]
[376645156,1754069458130,-7885.76,0.00023185,2]
[376645158,1754069458139,-1256.44,0.00023185,2]
[376645160,1754069458148,-483.69,0.00023185,2]
[376645162,1754069458157,-460.0,0.00023185,2]
[376645164,1754069458166,-5790.7,0.00023185,2]
[376645166,1754069458176,-460.0,0.00023185,2]
[376645168,1754069458185,-460.0,0.00023185,2]
[376645170,1754069458194,-986.92,0.00023185,2]
[376645172,1754069458204,-976.82,0.00023185,2]
[376645174,1754069458213,-474.25,0.00023185,2]
[376645176,1754069458223,-1013.68,0.00023185,2]
[376645178,1754069458232,-3993.69,0.00023185,2]
[376645180,1754069458241,-1218.29,0.00023185,2]
[376645182,1754069458251,-562.37,0.00023185,2]
[376645184,1754069458260,-3161.08,0.00023185,2]
[376645186,1754069458269,-1133.95,0.00023185,2]
[376645188,1754069458279,-176.32,0.00023185,2]
[376645190,1754069458288,-2061.59,0.00023185,2]
[376645192,1754069458297,-366.58084044,0.00023185,2]
[376645194,1754069458307,-460.0,0.00023186,2]
[376645196,1754069458316,-460.0,0.00023186,2]
[376645198,1754069458326,-460.0,0.00023186,2]
[376645200,1754069458335,-535.48560659,0.00023186,2]
[376645201,1754069458345,-484.4,0.00023186,2]
[376645203,1754069458354,-460.0,0.00023186,2]
[376645205,1754069458364,-460.0,0.00023186,2]
[376645207,1754069458374,-460.0,0.00023186,2]
[376645209,1754069458384,-460.0,0.00023186,2]
[376645211,1754069458393,-882.76,0.00023186,2]
[376645213,1754069458402,-1038.26,0.00023186,2]
[376645215,1754069458411,-460.0,0.00023186,2]
[376645217,1754069458421,-748.01,0.00023186,2]
[376645219,1754069458430,-460.0,0.00023186,2]
[376645221,1754069458440,-460.0,0.00023186,2]
[376645223,1754069458449,-565.8,0.00023186,2]
[376645225,1754069458459,-1629.59,0.00023186,2]
[376645228,1754069458469,-829.9,0.00023186,2]
[376645229,1754069458482,-1243.19,0.00023186,2]
[376645231,1754069458491,-435.57171071,0.00023186,2]
[376645233,1754069458501,-460.0,0.00023186,2]
[376645235,1754069458511,-575.44,0.00023186,2]
[376645237,1754069458521,-524.08,0.00023186,2]
[376645239,1754069458531,-620.6,0.00023186,2]
[376645241,1754069458540,-460.0,0.00023186,2]
[376645243,1754069458550,-460.0,0.00023186,2]
[376645245,1754069458559,-1277.87,0.00023186,2]
[376645247,1754069458569,-600.2,0.00023186,2]
[376645250,1754069458578,-460.0,0.00023186,2]
[376645251,1754069458587,-662.37,0.00023186,2]
[376645254,1754069458598,-1085.61,0.00023186,2]
[376645256,1754069458607,-3361.66,0.00023186,2]
[376645257,1754069458616,-460.0,0.00023186,2]
[376645259,1754069458626,-1453.73,0.00023186,2]
[376645262,1754069458637,-627.63,0.00023186,2]
[376645263,1754069458649,-1282.4,0.00023186,2]
[376645265,1754069458658,-479.84,0.00023186,2]
[376645267,1754069458667,-684.14,0.00023186,2]
[376645269,1754069458678,-2414.29,0.00023186,2]
[376645271,1754069458687,-460.0,0.00023186,2]
[376645273,1754069458696,-460.0,0.00023186,2]
[376645275,1754069458705,-460.0,0.00023186,2]
[376645277,1754069458714,-1524.19,0.00023186,2]
[376645279,1754069458724,-460.0,0.00023186,2]
[376645281,1754069458733,-460.0,0.00023186,2]
[376645283,1754069458742,-460.0,0.00023186,2]
[376645285,1754069458751,-888.76,0.00023186,2]
[376645287,1754069458760,-460.0,0.00023186,2]
[376645289,1754069458769,-582.9,0.00023186,2]
[376645291,1754069458778,-2347.88,0.00023186,2]
[376645293,1754069458789,-460.0,0.00023186,2]
[376645295,1754069458798,-460.0,0.00023186,2]
[376645297,1754069458807,-611.3,0.00023186,2]
[376645299,1754069458817,-158.60233019,0.00023186,2]
[376645301,1754069458826,-460.0,0.00023186,2]
[376645303,1754069458836,-1083.92,0.00023186,2]
[376645305,1754069458845,-421.98287862,0.00023186,2]
[376645307,1754069458854,-460.0,0.00023186,2]
[376645309,1754069458863,-460.0,0.00023186,2]
[376645311,1754069458873,-1187.48,0.00023186,2]
[376645313,1754069458883,-460.0,0.00023186,2]
[376645315,1754069458892,-528.38,0.00023186,2]
[376645317,1754069458902,-923.87,0.00023186,2]
[376645319,1754069458911,-1074.14,0.00023186,2]
[376645321,1754069458921,-984.64,0.00023186,2]
[376645323,1754069458931,-460.0,0.00023186,2]
[376645325,1754069458940,-460.0,0.00023186,2]
[376645327,1754069458950,-500.0,0.00023268,2]
[376645329,1754069458960,-160.0,0.00023277,3]
[376645331,1754069458969,-215.03686253,0.0002328,3]
[376645333,1754069458981,-883.33,0.00023282,2]
[376645335,1754069458990,-339.43946372,0.00023282,2]
[376645337,1754069458999,-460.0,0.00023282,2]
[376645339,1754069459008,-460.0,0.00023282,2]
[376645341,1754069459018,-1123.48,0.00023282,2]
[376645343,1754069459027,-460.0,0.00023282,2]
[376645345,1754069459037,-689.92,0.00023282,2]
[376645348,1754069459046,-460.0,0.00023282,2]
[376645350,1754069459056,-576.55,0.00023282,2]
[376645352,1754069459064,-460.0,0.00023282,2]
[376645353,1754069459073,-460.0,0.00023282,2]
[376645356,1754069459083,-1696.22,0.00023282,2]
[376645358,1754069459092,-1250.77,0.00023282,2]
[376645360,1754069459101,-1005.51,0.00023282,2]
[376645361,1754069459110,-460.0,0.00023282,2]
[376645363,1754069459119,-500.0,0.00023282,2]
[376645366,1754069459129,-584.52447124,0.00023282,2]
[376645368,1754069459138,-590.71,0.00023282,2]
[376645370,1754069459147,-1647.05,0.00023282,2]
[376645372,1754069459156,-794.83,0.00023282,2]
[376645374,1754069459165,-460.0,0.00023282,2]
[376645376,1754069459174,-851.59,0.00023282,2]
[376645378,1754069459183,-460.0,0.00023282,2]
[376645380,1754069459192,-460.0,0.00023282,2]
[376645382,1754069459201,-848.84,0.00023284,2]
[376645384,1754069459210,-460.0,0.00023284,2]
[376645386,1754069459219,-2449.66,0.00023284,2]
[376645388,1754069459233,-480.66,0.00023284,2]
[376645389,1754069459242,-1857.88,0.00023284,2]
[376645391,1754069459251,-460.0,0.00023284,2]
[376645393,1754069459260,-460.0,0.00023285,2]
[376645395,1754069459270,-460.0,0.00023285,2]
[376645397,1754069459279,-460.0,0.00023285,2]
[376645399,1754069459288,-899.72,0.00023285,2]
[376645401,1754069459297,-327.73905616,0.00023285,2]
[376645404,1754069459308,-460.0,0.00023285,2]
[376645406,1754069459317,-824.68,0.00023285,2]
[376645407,1754069459326,-576.62,0.00023285,2]
[376645409,1754069459334,-524.783828,0.00023285,2]
[376645411,1754069459343,-584.83,0.00023285,2]
[376645413,1754069459352,-2037.08,0.00023285,2]
[376645415,1754069459362,-623.77,0.00023285,2]
[376645418,1754069459372,-440.08270594,0.00023286,2]
[376645420,1754069459381,-460.0,0.00023286,2]
[376645422,1754069459390,-460.0,0.00023286,2]
[376645423,1754069459399,-460.0,0.00023286,2]
[376645426,1754069459409,-318.76153844,0.00023286,2]
[376645428,1754069459418,-460.0,0.00023286,2]
[376645430,1754069459427,-572.15,0.00023286,2]
[376645432,1754069459437,-558.46,0.00023286,2]
[376645434,1754069459446,-470.41,0.00023286,2]
[376645436,1754069459455,-460.0,0.00023286,2]
[376645438,1754069459464,-522.15,0.00023286,2]
[376645439,1754069459474,-3584.18,0.00023286,2]
[376645442,1754069459483,-460.0,0.00023286,2]
[376645444,1754069459492,-460.0,0.00023286,2]
[376645446,1754069459502,-460.0,0.00023286,2]
[376645447,1754069459511,-3955.69,0.00023286,2]
[376645448,1754069459521,-554.16,0.00023286,2]
[376645449,1754069459530,-572.14,0.00023286,2]
[376645450,1754069459538,-460.0,0.00023286,2]
[376645451,1754069459548,-460.0,0.00023286,2]
[376645452,1754069459557,-747.38,0.00023286,2]
[376645453,1754069459566,-1190.84,0.00023286,2]
[376645454,1754069459575,-1234.91,0.00023286,2]
[376645455,1754069459583,-574.19,0.00023286,2]
[376645456,1754069459592,-2698.82,0.00023286,2]
[376645457,1754069459601,-8054.32,0.00023286,2]
[376645458,1754069459611,-529.07,0.00023286,2]
[376645459,1754069459620,-460.0,0.00023286,2]
[376645460,1754069459629,-1354.33,0.00023286,2]
[376645461,1754069459640,-4626.0,0.00023286,2]
[376645462,1754069459650,-460.0,0.00023286,2]
[376645463,1754069459659,-295.89119762,0.00023287,10]
[376645464,1754069459668,-610.0,0.00023287,10]
[376645465,1754069459677,-2097.27,0.00023287,10]
[376645466,1754069459686,-460.0,0.00023287,10]
[376645467,1754069459695,-460.0,0.00023287,10]
[376645468,1754069459704,-740.85,0.00023287,10]
[376645469,1754069459714,-460.0,0.00023287,10]
[376645470,1754069459726,-460.0,0.00023287,10]
[376645471,1754069459735,-460.0,0.00023287,10]
[376645472,1754069459745,-460.0,0.00023287,10]
[376645473,1754069459754,-460.0,0.00023287,10]
[376645474,1754069459763,-860.129806,0.00023315,2]
[376645475,1754069459773,-305.10559489,0.00023348,9]
[376645476,1754069459782,-152.85,0.00023367,2]
[376645477,1754069459792,-360.0,0.00023453,2]
[376645478,1754069459801,-500.0,0.00023456,5]
[376645479,1754069459812,-561.33,0.00023458,2]
[376645480,1754069459821,-151.36,0.00023458,4]
[376645481,1754069459832,-186.67,0.00023458,4]
[376645482,1754069459841,-7885.76,0.00023459,2]
[376645483,1754069459850,-1256.44,0.00023459,2]
[376645484,1754069459859,-483.69,0.00023459,2]
[376645485,1754069459869,-460.0,0.00023459,2]
[376645486,1754069459878,-5790.7,0.00023459,2]
[376645487,1754069459887,-460.0,0.00023459,2]
[376645488,1754069459896,-460.0,0.00023459,2]
[376645489,1754069459906,-986.92,0.00023459,2]
[376645490,1754069459915,-976.82,0.00023459,2]
[376645491,1754069459925,-474.25,0.00023459,2]
[376645492,1754069459934,-1013.68,0.00023459,2]
[376645493,1754069459943,-3993.69,0.00023459,2]
[376645494,1754069459952,-1218.29,0.00023459,2]
[376645495,1754069459961,-562.37,0.00023459,2]
[376645496,1754069459970,-3161.08,0.00023459,2]
[376645497,1754069459982,-1133.95,0.00023459,2]
[376645498,1754069459991,-2061.59,0.00023459,2]
[376645499,1754069460001,-460.0,0.0002346,2]
[376645500,1754069460011,-460.0,0.0002346,2]
[376645501,1754069460020,-460.0,0.0002346,2]
[376645502,1754069460030,-484.4,0.0002346,2]
[376645503,1754069460040,-597.93,0.0002346,2]
[376645504,1754069460049,-460.0,0.0002346,2]
[376645506,1754069460058,-460.0,0.0002346,2]
[376645508,1754069460069,-460.0,0.0002346,2]
[376645509,1754069460079,-882.76,0.0002346,2]
[376645510,1754069460089,-1038.26,0.0002346,2]
[376645511,1754069460098,-460.0,0.0002346,2]
[376645512,1754069460107,-748.01,0.0002346,2]
[376645513,1754069460117,-460.0,0.0002346,2]
[376645514,1754069460126,-460.0,0.0002346,2]
[376645515,1754069460135,-565.8,0.0002346,2]
[376645516,1754069460144,-1629.59,0.0002346,2]
[376645517,1754069460154,-829.9,0.0002346,2]
[376645518,1754069460163,-1243.19,0.0002346,2]
[376645519,1754069460173,-460.0,0.0002346,2]
[376645520,1754069460182,-575.44,0.0002346,2]
[376645521,1754069460191,-524.08,0.0002346,2]
[376645522,1754069460200,-620.6,0.0002346,2]
[376645523,1754069460210,-460.0,0.0002346,2]
[376645524,1754069460219,-460.0,0.0002346,2]
[376645525,1754069460231,-1277.87,0.0002346,2]
[376645526,1754069460240,-600.2,0.0002346,2]
[376645527,1754069460249,-460.0,0.0002346,2]
[376645528,1754069460259,-662.37,0.0002346,2]
[376645529,1754069460268,-1085.61,0.0002346,2]
[376645530,1754069460277,-3361.66,0.0002346,2]
[376645531,1754069460285,-460.0,0.0002346,2]
[376645532,1754069460295,-1453.73,0.0002346,2]
[376645533,1754069460303,-627.63,0.0002346,2]
[376645534,1754069460313,-1282.4,0.0002346,2]
[376645535,1754069460322,-479.84,0.0002346,2]
[376645536,1754069460331,-684.14,0.0002346,2]
[376645537,1754069460341,-2414.29,0.0002346,2]
[376645538,1754069460350,-460.0,0.0002346,2]
[376645539,1754069460359,-460.0,0.0002346,2]
[376645540,1754069460367,-460.0,0.0002346,2]
[376645541,1754069460377,-1524.19,0.0002346,2]
[376645542,1754069460386,-460.0,0.0002346,2]
[376645543,1754069460395,-460.0,0.0002346,2]
[376645544,1754069460404,-460.0,0.0002346,2]
[376645545,1754069460413,-888.76,0.0002346,2]
[376645546,1754069460423,-460.0,0.0002346,2]
[376645547,1754069460432,-582.9,0.0002346,2]
[376645548,1754069460441,-2347.88,0.0002346,2]
[376645549,1754069460450,-460.0,0.0002346,2]
[376645550,1754069460459,-460.0,0.0002346,2]
[376645551,1754069460468,-611.3,0.0002346,2]
[376645552,1754069460481,-442.36128274,0.0002346,2]
[376645553,1754069460490,-1083.92,0.0002346,2]
[376645554,1754069460500,-232.17325616,0.0002346,2]
[376645555,1754069460509,-460.0,0.0002346,2]
[376645556,1754069460518,-1187.48,0.0002346,2]
[376645557,1754069460528,-460.0,0.0002346,2]
[376645558,1754069460537,-528.38,0.0002346,2]
[376645559,1754069460546,-923.87,0.0002346,2]
[376645560,1754069460556,-1074.14,0.0002346,2]
[376645561,1754069460566,-984.64,0.0002346,2]
[376645562,1754069460575,-460.0,0.0002346,2]
[376645563,1754069460694,-460.0,0.0002346,2]
[376645564,1754069460704,-305.10559489,0.00023555,9]
[376645565,1754069460714,-883.33,0.00023556,2]
[376645566,1754069460727,-460.0,0.00023556,2]
[376645567,1754069460736,-460.0,0.00023556,2]
[376645568,1754069460745,-1123.48,0.00023556,2]
[376645569,1754069460754,-460.0,0.00023556,2]
[376645570,1754069460765,-689.92,0.00023556,2]
[376645571,1754069460774,-460.0,0.00023556,2]
[376645572,1754069460784,-576.55,0.00023556,2]
[376645573,1754069460794,-460.0,0.00023556,2]
[376645574,1754069460803,-460.0,0.00023556,2]
[376645576,1754069460813,-1696.22,0.00023556,2]
[376645578,1754069460823,-1250.77,0.00023556,2]
[376645580,1754069460832,-1005.51,0.00023556,2]
[376645582,1754069460841,-460.0,0.00023556,2]
[376645583,1754069460851,-500.0,0.00023556,2]
[376645584,1754069460860,-590.71,0.00023556,2]
[376645585,1754069460870,-1647.05,0.00023556,2]
[376645586,1754069460879,-794.83,0.00023556,2]
[376645587,1754069460889,-460.0,0.00023556,2]
[376645588,1754069460899,-851.59,0.00023556,2]
[376645589,1754069460908,-460.0,0.00023556,2]
[376645590,1754069460918,-460.0,0.00023556,2]
[376645591,1754069460927,-848.84,0.00023558,2]
[376645592,1754069460936,-460.0,0.00023558,2]
[376645593,1754069460946,-2449.66,0.00023558,2]
[376645594,1754069460956,-480.66,0.00023558,2]
[376645595,1754069460965,-1857.88,0.00023558,2]
[376645596,1754069460977,-460.0,0.00023558,2]
[376645597,1754069460987,-531.19618983,0.00023559,2]
[376645598,1754069460996,-460.0,0.00023559,2]
[376645599,1754069461005,-460.0,0.00023559,2]
[376645600,1754069461014,-899.72,0.00023559,2]
[376645601,1754069461024,-460.0,0.00023559,2]
[376645602,1754069461033,-824.68,0.00023559,2]
[376645603,1754069461043,-576.62,0.00023559,2]
[376645604,1754069461052,-584.83,0.00023559,2]
[376645605,1754069461062,-2037.08,0.00023559,2]
[376645606,1754069461072,-623.77,0.00023559,2]
[376645607,1754069461081,-370.31638356,0.0002356,2]
[376645608,1754069461090,-460.0,0.0002356,2]
[376645609,1754069461100,-460.0,0.0002356,2]
[376645610,1754069461109,-460.0,0.0002356,2]
[376645611,1754069461118,-572.15,0.0002356,2]
[376645612,1754069461128,-558.46,0.0002356,2]
[376645613,1754069461137,-470.41,0.0002356,2]
[376645614,1754069461147,-460.0,0.0002356,2]
[376645615,1754069461156,-522.15,0.0002356,2]
[376645616,1754069461166,-3584.18,0.0002356,2]
[376645617,1754069461175,-460.0,0.0002356,2]
[376645618,1754069461185,-460.0,0.0002356,2]
[376645619,1754069461194,-460.0,0.0002356,2]
[376645620,1754069461204,-3955.69,0.0002356,2]
[376645621,1754069461213,-554.16,0.0002356,2]
[376645622,1754069461222,-460.0,0.0002356,2]
[376645623,1754069461233,-460.0,0.0002356,2]
[376645624,1754069461242,-747.38,0.0002356,2]
[376645625,1754069461251,-1190.84,0.0002356,2]
[376645626,1754069461260,-1234.91,0.0002356,2]
[376645627,1754069461269,-574.19,0.0002356,2]
[376645628,1754069461278,-2698.82,0.0002356,2]
[376645629,1754069461287,-8054.32,0.0002356,2]
[376645630,1754069461296,-529.07,0.0002356,2]
[376645631,1754069461305,-541.15,0.0002356,2]
[376645632,1754069461314,-1354.33,0.0002356,2]
[376645633,1754069461323,-4626.0,0.0002356,2]
[376645634,1754069461333,-460.0,0.0002356,2]
[376645635,1754069461342,-610.0,0.00023561,10]
[376645636,1754069461351,-2097.27,0.00023561,10]
[376645637,1754069461360,-460.0,0.00023561,10]
[376645638,1754069461370,-740.85,0.00023561,10]
[376645639,1754069461380,-460.0,0.00023561,10]
[376645640,1754069461389,-460.0,0.00023561,10]
[376645641,1754069461398,-460.0,0.00023561,10]
[376645642,1754069461408,-264.94484792,0.00023561,10]
[376645643,1754069461417,-460.0,0.00023561,10]
[376645644,1754069461426,-315.92,0.00023561,2]
[376645645,1754069461435,-500.0,0.00023568,2]
[376645646,1754069461444,-1500.0,0.00023568,2]
[376645647,1754069461454,-2257.33,0.000236,7]
[376645648,1754069461464,-151.348972,0.00023653,6]
[376645649,1754069461473,-970.0,0.00023696,2]
[376645650,1754069461488,-635.0,0.00023696,2]
[376645651,1754069461497,-407.0,0.00023696,2]
[376645652,1754069461506,-2146.0,0.00023696,2]
[376645653,1754069461516,-561.33,0.00023732,2]
[376645654,1754069461525,-7885.76,0.00023733,2]
[376645655,1754069461535,-1256.44,0.00023733,2]
[376645656,1754069461545,-483.69,0.00023733,2]
[376645657,1754069461554,-460.0,0.00023733,2]
[376645658,1754069461563,-5790.7,0.00023733,2]
[376645659,1754069461573,-460.0,0.00023733,2]
[376645660,1754069461582,-460.0,0.00023733,2]
[376645661,1754069461592,-986.92,0.00023733,2]
[376645662,1754069461601,-976.82,0.00023733,2]
[376645663,1754069461610,-474.25,0.00023733,2]
[376645664,1754069461619,-1013.68,0.00023733,2]
[376645665,1754069461629,-3993.69,0.00023733,2]
[376645666,1754069461640,-1218.29,0.00023733,2]
[376645667,1754069461650,-562.37,0.00023733,2]
[376645668,1754069461659,-3161.08,0.00023733,2]
[376645669,1754069461668,-1133.95,0.00023733,2]
[376645670,1754069461679,-2061.59,0.00023733,2]
[376645671,1754069461689,-460.0,0.00023734,2]
[376645672,1754069461698,-460.0,0.00023734,2]
[376645673,1754069461708,-460.0,0.00023734,2]
[376645674,1754069461718,-484.4,0.00023734,2]
[376645675,1754069461735,-460.0,0.00023734,2]
[376645676,1754069461745,-460.0,0.00023734,2]
[376645677,1754069461754,-460.0,0.00023734,2]
[376645678,1754069461765,-882.76,0.00023734,2]